bitfinex/quotes_SOLUSD_20230102
["timestamp","ask_amount","ask_price","bid_price","bid_amount"]
[1672632640785,75.11,9.9998,9.991,30.0]
[1672632640996,30.0,9.9999,9.991,53.8201]
[1672632641199,75.11,9.9998,9.9912,30.0]
[1672632641405,30.0,9.9997,9.9913,20.0]
[1672632641604,75.12,9.9996,9.9913,20.0]
[1672632641816,30.0,9.9995,9.9913,20.0]
[1672632642029,30.0,9.9993,9.9913,20.0]
[1672632642251,75.12,9.9992,9.9912,20.0]
[1672632642465,30.0,9.9991,9.9912,20.0]
[1672632642675,30.0,9.9989,9.9912,20.0]
[1672632642867,75.12,9.9988,9.9912,20.0]
[1672632643287,30.0,9.9987,9.9912,20.0]
[1672632643496,75.12,9.9986,9.9913,30.0]
[1672632643808,30.0,9.9989,9.9911,23.8201]
[1672632643809,75.12,9.9988,9.9914,20.0]
[1672632644026,30.0,9.9987,9.9914,20.0]
[1672632644230,75.12,9.9986,9.9912,20.0]
[1672632644545,30.0,9.9985,9.9912,20.0]
[1672632644751,30.0,9.9983,9.9915,12.15719367]
[1672632644981,75.13,9.9982,9.9915,12.15719367]
[1672632645187,30.0,9.9981,9.9916,20.0]
[1672632645398,30.0,9.9979,9.9916,20.0]
[1672632645610,75.13,9.9978,9.9916,20.0]
[1672632645827,30.0,9.9977,9.9916,20.0]
[1672632646036,30.0,9.9975,9.9916,20.0]
[1672632646250,75.13,9.9974,9.9916,20.0]
[1672632646457,30.0,9.9973,9.9916,20.0]
[1672632646661,30.0,9.9971,9.9916,20.0]
[1672632646872,75.14,9.997,9.9916,20.0]
[1672632647104,30.0,9.9969,9.9916,20.0]
[1672632647296,75.14,9.9968,9.9916,20.0]
[1672632647620,30.0,9.9967,9.9916,20.0]
[1672632648651,30.0,9.9967,9.9917,12.15396193]
[1672632648877,30.0,9.9967,9.9918,20.0]
[1672632651712,75.14,9.9968,9.9918,20.0]
[1672632651922,75.13,9.9978,9.9918,20.0]
[1672632652132,30.0,9.9979,9.9918,20.0]
[1672632652332,75.13,9.9978,9.9918,20.0]
[1672632652664,75.13,9.9978,9.9919,12.15073033]
[1672632652873,75.13,9.9978,9.992,20.0]
[1672632653064,30.0,9.9977,9.992,20.0]
[1672632653275,75.13,9.9976,9.992,20.0]
[1672632653921,30.0,9.9979,9.992,20.0]
[1672632654128,75.13,9.9978,9.992,20.0]
[1672632654321,30.0,9.9985,9.992,20.0]
[1672632654544,30.0,9.9983,9.992,20.0]
[1672632654753,75.13,9.9982,9.992,20.0]
[1672632655072,30.0,9.9981,9.992,20.0]
[1672632655277,30.0,9.9979,9.992,20.0]
[1672632655481,75.13,9.9978,9.992,20.0]
[1672632655694,30.0,9.9977,9.992,20.0]
[1672632655917,30.0,9.9975,9.992,20.0]
[1672632656125,75.13,9.9974,9.992,20.0]
[1672632656331,30.0,9.9973,9.992,20.0]
[1672632656558,30.0,9.9973,9.9921,12.14749885]
[1672632656772,30.0,9.9973,9.9922,20.0]
[1672632656979,75.13,9.9974,9.9922,20.0]
[1672632657381,30.0,9.9973,9.9922,20.0]
[1672632658534,75.13,9.9972,9.9922,20.0]
[1672632658748,75.13,9.9974,9.9922,20.0]
[1672632659166,75.12,9.9986,9.9922,20.0]
[1672632659392,75.12,9.999,9.9923,30.0]
[1672632659605,30.0,9.9993,9.9924,20.0]
[1672632659925,30.0,9.9991,9.9924,20.0]
[1672632660240,30.0,9.9989,9.9924,20.0]
[1672632660426,75.12,9.9988,9.9924,20.0]
[1672632660631,30.0,9.9987,9.9925,12.14103628]
[1672632660851,30.0,9.9985,9.9926,20.0]
[1672632661063,30.0,9.9983,9.9926,20.0]
[1672632661268,75.13,9.9982,9.9926,20.0]
[1672632661702,30.0,9.9985,9.9926,20.0]
[1672632661915,30.0,9.9983,9.9926,20.0]
[1672632662235,75.13,9.9982,9.9926,20.0]
[1672632662451,30.0,9.9981,9.9926,20.0]
[1672632662761,30.0,9.9979,9.9926,20.0]
[1672632664649,30.0,9.9979,9.9927,12.13780519]
[1672632664848,30.0,9.9979,9.9928,20.0]
[1672632665059,75.13,9.998,9.9928,20.0]
[1672632665269,30.0,9.9983,9.9928,20.0]
[1672632666008,30.0,9.9981,9.9928,20.0]
[1672632666212,75.13,9.9982,9.9928,20.0]
[1672632666425,30.0,9.9983,9.9928,20.0]
[1672632666635,75.13,9.9982,9.9928,20.0]
[1672632666970,30.0,9.9981,9.9928,20.0]
[1672632668860,30.0,9.9981,9.9929,12.13457423]
[1672632669288,30.0,9.9981,9.993,20.0]
[1672632670438,30.0,9.9979,9.993,20.0]
[1672632670753,30.0,9.9977,9.993,20.0]
[1672632670939,30.0,9.9975,9.993,20.0]
[1672632672751,30.0,9.9975,9.9931,12.1313434]
[1672632673375,75.13,9.9976,9.9931,12.1313434]
[1672632673905,30.0,9.9977,9.9931,12.1313434]
[1672632674113,75.13,9.9976,9.9931,12.1313434]
[1672632674327,30.0,9.9975,9.9931,12.1313434]
[1672632675169,75.13,9.9976,9.9931,12.1313434]
[1672632675362,30.0,9.9989,9.9931,12.1313434]
[1672632675573,75.12,9.9988,9.9931,12.1313434]
[1672632675813,30.0,9.9987,9.9931,12.1313434]
[1672632676110,30.0,9.9985,9.9931,12.1313434]
[1672632677145,75.12,9.9986,9.9931,12.1313434]
[1672632677367,30.0,9.9985,9.9931,12.1313434]
[1672632678616,30.0,9.9983,9.9931,12.1313434]
[1672632678826,30.0,9.9981,9.9931,12.1313434]
[1672632684618,20.0,9.998,9.9931,12.1313434]
[1672632684834,75.13,9.9979,9.9931,0.0013434]
[1672632685155,20.0,9.9978,9.9931,0.0013434]
[1672632685470,75.13,9.9977,9.9931,0.0013434]
[1672632685659,30.0,9.9975,9.9832,30.0]
[1672632685869,95.13,9.9974,9.9832,168.6726]
[1672632686079,30.0,9.9973,9.9832,241.11667598]
[1672632686293,95.14,9.9972,9.9833,72.44407598]
[1672632686500,30.0,9.9971,9.9834,30.0]
[1672632686709,30.0,9.9969,9.9834,102.44407598]
[1672632686932,30.0,9.9969,9.9835,72.44407598]
[1672632686933,75.14,9.9968,9.9835,72.44407598]
[1672632687141,30.0,9.9967,9.9836,30.0]
[1672632687350,75.14,9.9966,9.9836,102.44407598]
[1672632687555,30.0,9.9965,9.9838,30.0]
[1672632687772,30.0,9.9963,9.9838,30.0]
[1672632687978,30.0,9.9961,9.984,30.0]
[1672632688200,75.14,9.996,9.984,30.0]
[1672632688400,30.0,9.9959,9.9841,72.44407598]
[1672632688610,30.0,9.9957,9.9842,30.0]
[1672632688828,75.15,9.9956,9.9842,102.44407598]
[1672632689145,30.0,9.9955,9.9844,30.0]
[1672632689356,30.0,9.9953,9.9844,30.0]
[1672632689569,75.15,9.9952,9.9845,72.44407598]
[1672632689764,30.0,9.9951,9.9846,30.0]
[1672632690090,30.0,9.9949,9.9847,56.63676812]
[1672632690289,75.15,9.9948,9.9847,56.63676812]
[1672632690498,30.0,9.9947,9.9848,30.0]
[1672632690720,75.15,9.9946,9.9848,30.0]
[1672632691037,30.0,9.9945,9.9848,30.0]
[1672632691238,75.16,9.9944,9.9848,30.0]
[1672632691557,30.0,9.9943,9.9848,30.0]
[1672632691777,75.16,9.9942,9.9848,30.0]
[1672632691964,30.0,9.9941,9.9847,56.63676812]
[1672632692179,75.16,9.994,9.9847,56.63676812]
[1672632692388,30.0,9.9939,9.9848,30.0]
[1672632692598,30.0,9.9937,9.9848,30.0]
[1672632692809,75.16,9.9936,9.9847,56.63676812]
[1672632693024,30.0,9.9935,9.9847,56.63676812]
[1672632693234,30.0,9.9935,9.9848,30.0]
[1672632693235,30.0,9.9933,9.9848,30.0]
[1672632693451,75.17,9.9932,9.9848,30.0]
[1672632693767,30.0,9.9931,9.9848,13.505638]
[1672632694498,75.17,9.993,9.9849,30.0]
[1672632694724,75.17,9.9932,9.9849,30.0]
[1672632694929,75.16,9.9934,9.9849,30.0]
[1672632695138,30.0,9.9933,9.9849,30.0]
[1672632695344,30.0,9.9931,9.9849,30.0]
[1672632695548,30.0,9.9929,9.985,15.80730786]
[1672632695988,30.0,9.9927,9.985,15.80730786]
[1672632696388,30.0,9.9925,9.985,15.80730786]
[1672632696617,24.4925,9.9926,9.9851,30.0]
[1672632696822,24.4925,9.9926,9.985,15.80730786]
[1672632697014,24.4925,9.9925,9.9852,15.80730786]
[1672632697667,24.4925,9.9925,9.9853,13.49593006]
[1672632698067,24.4925,9.9925,9.9854,15.80730786]
[1672632701872,24.4925,9.9925,9.9855,13.49204716]
[1672632702281,24.4925,9.9925,9.9856,15.80730786]
[1672632702490,30.0,9.9924,9.9856,15.80730786]
[1672632704911,30.0,9.9924,9.9855,13.49204716]
[1672632705742,30.0,9.9924,9.9856,15.80730786]
[1672632706823,30.0,9.9924,9.9857,13.48816442]
[1672632707224,30.0,9.9924,9.9858,15.80730786]
[1672632707435,30.0,9.9922,9.9858,15.80730786]
[1672632707653,75.17,9.9921,9.9858,15.80730786]
[1672632707854,30.0,9.992,9.9858,15.80730786]
[1672632708076,30.0,9.9918,9.9858,15.80730786]
[1672632708387,75.18,9.9917,9.9858,15.80730786]
[1672632708601,30.0,9.9916,9.9858,15.80730786]
[1672632709870,30.0,9.9916,9.9859,13.48428182]
[1672632710393,30.0,9.9916,9.986,15.80730786]
[1672632713735,30.0,9.9916,9.9861,13.48039939]
[1672632714157,30.0,9.9916,9.9862,15.80730786]
[1672632717751,30.0,9.9916,9.9863,13.47651711]
[1672632719120,30.0,9.9914,9.9863,13.47651711]
[1672632723739,30.0,9.9914,9.9864,15.80730786]
[1672632724354,30.0,9.9914,9.9863,13.47651711]
[1672632724888,30.0,9.9914,9.984,65.78972649]
[1672632725096,30.0,9.9914,9.9845,15.80730786]
[1672632725517,30.0,9.9912,9.9846,52.3170915]
[1672632725950,30.0,9.9912,9.9847,15.80730786]
[1672632726264,30.0,9.9912,9.9848,52.3170915]
[1672632726683,30.0,9.9912,9.9849,15.80730786]
[1672632727082,30.0,9.9912,9.985,52.3170915]
[1672632728892,30.0,9.9912,9.9851,13.49981312]
[1672632731286,75.18,9.9911,9.9851,13.49981312]
[1672632731495,30.0,9.991,9.9851,13.49981312]
[1672632731725,75.18,9.9909,9.9827,15.80730786]
[1672632731934,30.0,9.9908,9.9827,15.80730786]
[1672632732142,30.0,9.9906,9.9827,15.80730786]
[1672632732332,75.19,9.9905,9.9827,15.80730786]
[1672632732565,30.0,9.9904,9.9827,15.80730786]
[1672632732766,30.0,9.9902,9.9837,13.52699887]
[1672632732979,75.19,9.9901,9.9837,29.33430673]
[1672632733294,30.0,9.99,9.9838,15.80730786]
[1672632733720,30.0,9.99,9.9838,68.12439936]
[1672632734117,30.0,9.9898,9.9839,15.80730786]
[1672632734332,75.19,9.9897,9.9839,15.80730786]
[1672632734539,30.0,9.9896,9.9839,15.80730786]
[1672632736654,30.0,9.9896,9.984,13.52117271]
[1672632737921,30.0,9.9896,9.984,29.32848057]
[1672632739087,30.0,9.9894,9.984,29.32848057]
[1672632739298,30.0,9.9892,9.984,29.32848057]
[1672632739503,75.2,9.9891,9.984,13.52117271]
[1672632739704,30.0,9.989,9.984,13.52117271]
[1672632740655,30.0,9.9888,9.984,13.52117271]
[1672632740851,75.2,9.9887,9.984,13.52117271]
[1672632741065,30.0,9.9886,9.984,13.52117271]
[1672632741292,75.2,9.9885,9.984,13.52117271]
[1672632741506,30.0,9.9884,9.984,13.52117271]
[1672632746738,30.0,9.9884,9.9841,15.80730786]
[1672632747805,30.0,9.9884,9.9842,13.5172888]
[1672632755905,30.0,9.9884,9.9838,52.3170915]
[1672632756320,30.0,9.9884,9.983,15.80730786]
[1672632756860,30.0,9.9884,9.9839,13.52311473]
[1672632757895,30.0,9.9884,9.983,15.80730786]
[1672632760744,30.0,9.9884,9.9831,13.53865225]
[1672632761157,30.0,9.9884,9.9831,29.34596011]
[1672632764091,30.0,9.9886,9.9831,29.34596011]
[1672632765584,75.17,9.9921,9.9831,29.34596011]
[1672632765790,22.5682,9.9906,9.9832,52.3170915]
[1672632766113,24.7696,9.9903,9.9833,15.80730786]
[1672632766515,24.7696,9.9903,9.9834,52.3170915]
[1672632766844,24.7696,9.9903,9.9835,15.80730786]
[1672632767251,24.7696,9.9903,9.9836,82.3170915]
[1672632767457,24.7696,9.9903,9.9836,52.3170915]
[1672632767672,24.7696,9.9903,9.9837,68.2275411]
[1672632767893,24.7696,9.9903,9.9838,30.0]
[1672632768310,24.7696,9.9903,9.9839,68.2275411]
[1672632768524,24.7696,9.9903,9.984,30.0]
[1672632768736,24.7696,9.9903,9.984,45.80730786]
[1672632769059,24.7696,9.9903,9.9842,30.0]
[1672632769369,24.7696,9.9903,9.9843,84.03484896]
[1672632769562,24.7696,9.9903,9.9844,30.0]
[1672632769785,24.7696,9.9903,9.9843,84.03484896]
[1672632769987,30.0,9.9902,9.9843,84.03484896]
[1672632772200,24.7696,9.9903,9.9844,84.03484896]
[1672632772616,24.7696,9.9903,9.9845,68.2275411]
[1672632776186,30.0,9.9902,9.9845,68.2275411]
[1672632776724,30.0,9.9902,9.9846,13.50952144]
[1672632780281,30.0,9.9902,9.9846,81.73706254]
[1672632782591,30.0,9.99,9.9846,81.73706254]
[1672632787134,35.65,9.99,9.9846,13.50952144]
[1672632787452,30.0,9.9898,9.9846,13.50952144]
[1672632787660,30.0,9.9896,9.9846,13.50952144]
[1672632787857,30.0,9.9894,9.9823,24.3103]
[1672632788186,30.0,9.9892,9.9824,82.32259443]
[1672632788607,30.0,9.9892,9.9825,78.12990229]
[1672632788824,30.0,9.9892,9.9826,20.0]
[1672632789125,24.7696,9.9903,9.9827,78.12990229]
[1672632789345,24.7696,9.9903,9.9828,20.0]
[1672632789548,24.7696,9.9903,9.9829,30.0]
[1672632789758,24.7696,9.9903,9.9829,108.12990229]
[1672632789974,24.7696,9.9903,9.983,78.12990229]
[1672632790291,24.7696,9.9903,9.9831,78.12990229]
[1672632790493,24.7696,9.9903,9.9832,30.0]
[1672632790704,24.7696,9.9903,9.9832,108.12990229]
[1672632791025,24.7696,9.9903,9.9833,15.80730786]
[1672632791641,30.0,9.9902,9.9833,15.80730786]
[1672632791841,30.0,9.9902,9.9834,13.53282538]
[1672632793107,75.19,9.9901,9.9834,13.53282538]
[1672632793316,30.0,9.99,9.9834,13.53282538]
[1672632795208,75.19,9.9899,9.9834,13.53282538]
[1672632795530,30.0,9.9898,9.9834,13.53282538]
[1672632801088,30.0,9.9896,9.9834,13.53282538]
[1672632801293,30.0,9.9894,9.9834,13.53282538]
[1672632801517,30.0,9.9898,9.9834,13.53282538]
[1672632801518,75.19,9.9893,9.9834,13.53282538]
[1672632801727,30.0,9.9892,9.9834,13.53282538]
[1672632801948,75.19,9.9897,9.9828,20.0]
[1672632802146,30.0,9.9896,9.9824,20.0]
[1672632802356,30.0,9.9894,9.9824,20.0]
[1672632802582,75.19,9.9893,9.9824,20.0]
[1672632802781,30.0,9.9892,9.9829,13.54253701]
[1672632803831,30.0,9.9892,9.9824,20.0]
[1672632804987,30.0,9.9892,9.9825,13.55030702]
[1672632805407,30.0,9.9892,9.9826,20.0]
[1672632806659,30.0,9.989,9.9826,20.0]
[1672632807829,30.0,9.989,9.9827,13.54642194]
[1672632808246,75.2,9.9889,9.9828,20.0]
[1672632808442,30.0,9.9888,9.9828,20.0]
[1672632811909,30.0,9.9888,9.9829,13.54253701]
[1672632813819,30.0,9.9888,9.983,15.80730786]
[1672632814965,30.0,9.9886,9.983,15.80730786]
[1672632815170,75.2,9.9885,9.983,15.80730786]
[1672632815383,30.0,9.9884,9.983,15.80730786]
[1672632815927,30.0,9.9884,9.9831,13.53865225]
[1672632816120,30.0,9.9882,9.9831,13.53865225]
[1672632816329,30.0,9.988,9.9831,13.53865225]
[1672632817498,30.0,9.9878,9.9831,13.53865225]
[1672632817827,30.0,9.9876,9.9828,20.0]
[1672632818012,75.21,9.9875,9.9824,20.0]
[1672632818347,30.0,9.9874,9.9824,20.0]
[1672632818539,30.0,9.9872,9.9824,20.0]
[1672632818749,75.21,9.9871,9.9817,20.0]
[1672632818972,30.0,9.987,9.9817,20.0]
[1672632819183,30.0,9.9868,9.9815,20.0]
[1672632819388,75.21,9.9867,9.9815,20.0]
[1672632819718,30.0,9.9866,9.9815,20.0]
[1672632819925,30.0,9.9866,9.9818,13.56390602]
[1672632820116,30.0,9.9866,9.9819,20.0]
[1672632822643,75.22,9.9865,9.9819,20.0]
[1672632822973,30.0,9.9864,9.9819,20.0]
[1672632823172,30.0,9.9862,9.9819,20.0]
[1672632823377,75.22,9.9861,9.9819,20.0]
[1672632823596,30.0,9.986,9.9819,20.0]
[1672632823800,30.0,9.9858,9.9819,20.0]
[1672632824006,30.0,9.9856,9.982,11.300017]
[1672632824327,75.22,9.9855,9.9821,20.0]
[1672632824545,30.0,9.9854,9.9821,20.0]
[1672632824851,30.0,9.9852,9.9821,20.0]
[1672632826013,30.0,9.9852,9.982,11.300017]
[1672632826224,30.0,9.985,9.982,11.300017]
[1672632826442,75.23,9.9849,9.982,11.300017]
[1672632826653,30.0,9.9848,9.982,11.300017]
[1672632826849,30.0,9.9846,9.9708,30.0]
[1672632827061,30.0,9.9844,9.9709,20.0]
[1672632827271,75.23,9.9843,9.9709,20.0]
[1672632827492,30.0,9.9842,9.9711,30.0]
[1672632827698,30.0,9.984,9.9712,20.0]
[1672632827896,75.24,9.9839,9.9745,11.42153164]
[1672632828112,30.0,9.9838,9.9745,11.42153164]
[1672632828331,30.0,9.9838,9.9746,134.73383292]
[1672632828332,75.24,9.9837,9.9746,134.73383292]
[1672632828545,30.0,9.9836,9.9746,134.73383292]
[1672632828868,30.0,9.9834,9.9747,62.32259443]
[1672632829071,75.24,9.9833,9.9747,62.32259443]
[1672632829270,30.0,9.9832,9.9747,62.32259443]
[1672632829479,30.0,9.983,9.9747,62.32259443]
[1672632829710,75.24,9.9829,9.9747,62.32259443]
[1672632830023,30.0,9.9828,9.9747,62.32259443]
[1672632830336,30.0,9.9826,9.9747,62.32259443]
[1672632830542,30.0,9.9824,9.9747,62.32259443]
[1672632830758,75.25,9.9823,9.9747,62.32259443]
[1672632830952,30.0,9.9822,9.9747,62.32259443]
[1672632831156,75.25,9.9821,9.9747,62.32259443]
[1672632831369,30.0,9.982,9.9747,62.32259443]
[1672632831909,30.0,9.982,9.9748,11.41666755]
[1672632831910,30.0,9.9818,9.9748,11.41666755]
[1672632832113,30.0,9.9816,9.9748,11.41666755]
[1672632832959,30.0,9.9814,9.9748,11.41666755]
[1672632835277,24.7884,9.9818,9.975,30.0]
[1672632835465,24.7884,9.9818,9.9749,118.92652506]
[1672632835671,24.7884,9.9818,9.9751,118.92652506]
[1672632836109,24.7884,9.9818,9.9752,62.32259443]
[1672632836745,30.0,9.9816,9.9752,62.32259443]
[1672632839365,24.7884,9.9818,9.9752,62.32259443]
[1672632839682,24.7884,9.9818,9.9753,68.012492]
[1672632839889,24.7884,9.9818,9.9754,30.0]
[1672632840095,24.7884,9.9818,9.9754,118.92652506]
[1672632840306,30.0,9.9817,9.9754,62.32259443]
[1672632840522,30.0,9.9817,9.9753,11.40856137]
[1672632840523,75.25,9.9816,9.9753,11.40856137]
[1672632840737,30.0,9.9815,9.9753,11.40856137]
[1672632840949,30.0,9.9813,9.9753,11.40856137]
[1672632841591,75.25,9.9814,9.9753,11.40856137]
[1672632841794,75.25,9.9817,9.974,30.0]
[1672632841999,30.0,9.9816,9.974,30.0]
[1672632842203,75.25,9.9815,9.9741,62.31600486]
[1672632842413,30.0,9.9814,9.9741,62.31600486]
[1672632842626,75.25,9.9813,9.9741,62.31600486]
[1672632842840,30.0,9.9812,9.9741,62.31600486]
[1672632843992,30.0,9.9812,9.9742,11.42639603]
[1672632844534,30.0,9.9812,9.9743,62.31600486]
[1672632845352,24.3577,9.9814,9.9743,62.31600486]
[1672632845583,24.3577,9.9814,9.9745,30.0]
[1672632845895,24.3577,9.9814,9.9746,203.92801416]
[1672632846088,24.3577,9.9814,9.9747,30.0]
[1672632846300,24.3577,9.9814,9.9747,233.92801416]
[1672632846506,24.3577,9.9814,9.9748,203.92801416]
[1672632846722,24.3577,9.9814,9.9749,30.0]
[1672632847037,24.3577,9.9814,9.975,129.6291981]
[1672632847247,30.0,9.9813,9.975,129.6291981]
[1672632847458,105.25,9.9813,9.975,129.6291981]
[1672632847879,105.25,9.9813,9.9751,11.41180374]
[1672632853667,30.0,9.9813,9.9751,11.41180374]
[1672632854078,30.0,9.9813,9.9751,78.72499698]
[1672632861987,24.3577,9.9814,9.9751,78.72499698]
[1672632862421,30.0,9.9813,9.9751,78.72499698]
[1672632864085,24.3577,9.9814,9.9751,78.72499698]
[1672632864415,24.3577,9.9814,9.9753,30.0]
[1672632864622,24.3577,9.9814,9.9752,78.12331272]
[1672632864835,24.3577,9.9814,9.9754,145.43650596]
[1672632865255,24.3577,9.9814,9.9755,145.43650596]
[1672632865662,24.3577,9.9814,9.9756,145.43650596]
[1672632866100,24.3577,9.9814,9.9757,67.31319324]
[1672632869769,24.3577,9.9814,9.9758,11.40045601]
[1672632871343,24.3577,9.9814,9.9759,67.31319324]
[1672632873879,24.3577,9.9814,9.976,41.3972141]
[1672632874280,24.3577,9.9814,9.9761,67.31319324]
[1672632876498,24.3577,9.9814,9.9762,30.0]
[1672632876940,24.3577,9.9814,9.9763,129.6291981]
[1672632877344,24.3577,9.9814,9.9764,129.6291981]
[1672632877889,24.3577,9.9814,9.9765,67.31319324]
[1672632878082,24.3577,9.9814,9.9765,129.6291981]
[1672632878503,24.3577,9.9814,9.9766,67.31319324]
[1672632879333,24.3577,9.9814,9.9766,129.6291981]
[1672632879551,74.82935117,9.9954,9.9766,145.43650596]
[1672632879755,47.7472,9.9927,9.9815,24.3577]
[1672632880088,47.7472,9.9927,9.9816,35.80730786]
[1672632880306,159.8974,9.9926,9.9849,106.86987922]
[1672632880516,30.0,9.9963,9.985,30.0]
[1672632880824,75.14,9.9962,9.9851,233.20142161]
[1672632881021,75.14,9.9962,9.9851,308.63076944]
[1672632881232,138.3762,9.9961,9.9852,233.20142161]
[1672632881449,30.0,9.9959,9.9853,30.0]
[1672632881655,75.15,9.9958,9.9853,338.63076944]
[1672632881978,30.0,9.9957,9.9855,30.0]
[1672632882186,75.15,9.9956,9.9855,30.0]
[1672632882501,30.0,9.9955,9.9857,30.0]
[1672632882721,75.15,9.9954,9.9856,308.63076944]
[1672632882933,75.15,9.9954,9.9858,233.20142161]
[1672632882934,30.0,9.9953,9.9858,233.20142161]
[1672632883127,30.0,9.9951,9.9858,233.20142161]
[1672632883454,30.0,9.9949,9.9859,233.20142161]
[1672632883647,75.15,9.9948,9.9859,233.20142161]
[1672632883858,75.15,9.9948,9.986,233.20142161]
[1672632884072,30.0,9.9947,9.986,233.20142161]
[1672632884289,30.0,9.9947,9.9861,233.20142161]
[1672632884695,30.0,9.9947,9.9862,233.20142161]
[1672632885123,30.0,9.9947,9.9863,233.20142161]
[1672632885534,30.0,9.9947,9.9864,233.20142161]
[1672632885745,30.0,9.9947,9.9864,246.67599764]
[1672632885968,30.0,9.9947,9.9865,233.20142161]
[1672632886395,30.0,9.9947,9.9866,138.77131984]
[1672632887230,30.0,9.9947,9.9866,233.20142161]
[1672632887550,30.0,9.9947,9.9867,138.77131984]
[1672632887958,30.0,9.9947,9.9868,94.43010177]
[1672632888398,30.0,9.9947,9.9869,138.77131984]
[1672632888711,30.0,9.9947,9.987,94.43010177]
[1672632889853,30.0,9.9947,9.9871,11.21749129]
[1672632892067,30.0,9.9945,9.9871,11.21749129]
[1672632892275,75.16,9.9944,9.9871,11.21749129]
[1672632892497,30.0,9.9943,9.9871,11.21749129]
[1672632892687,30.0,9.9941,9.9871,11.21749129]
[1672632893841,30.0,9.9941,9.9851,138.77131984]
[1672632894280,30.0,9.9941,9.9852,94.43010177]
[1672632894479,30.0,9.9939,9.9852,94.43010177]
[1672632894687,30.0,9.9937,9.9853,138.77131984]
[1672632895121,30.0,9.9937,9.9854,94.43010177]
[1672632895528,30.0,9.9937,9.9855,138.77131984]
[1672632895949,30.0,9.9937,9.9855,150.01469247]
[1672632896271,30.0,9.9935,9.9856,138.77131984]
[1672632897006,30.0,9.9935,9.9857,94.43010177]
[1672632897430,30.0,9.9935,9.9858,138.77131984]
[1672632897840,30.0,9.9935,9.9858,152.25754294]
[1672632898044,30.0,9.9935,9.9859,94.43010177]
[1672632898268,30.0,9.9935,9.9859,233.20142161]
[1672632898484,30.0,9.9935,9.986,138.77131984]
[1672632898674,30.0,9.9935,9.986,233.20142161]
[1672632898886,30.0,9.9935,9.986,246.6837622]
[1672632906790,30.0,9.9935,9.986,107.91244236]
[1672632908356,30.0,9.9935,9.986,13.48234059]
[1672632908981,30.0,9.9935,9.9837,99.26974028]
[1672632909182,30.0,9.9933,9.9837,99.26974028]
[1672632909818,30.0,9.9931,9.9837,99.26974028]
[1672632910030,30.0,9.9931,9.9838,13.52505678]
[1672632910577,146.6184,9.9931,9.9838,13.52505678]
[1672632910772,5.66,9.99,9.9838,13.52505678]
[1672632912150,5.66,9.99,9.983,23.073]
[1672632912883,5.66,9.99,9.9831,13.53865225]
[1672632914247,30.0,9.9919,9.9831,13.53865225]
[1672632914965,24.321,9.9918,9.9831,13.53865225]
[1672632915289,30.0,9.9917,9.9831,29.34596011]
[1672632915502,54.321,9.9917,9.9831,29.34596011]
[1672632916126,30.0,9.9915,9.9831,29.34596011]
[1672632916760,30.0,9.9913,9.9831,29.34596011]
[1672632917510,30.0,9.9911,9.9831,29.34596011]
[1672632922029,53.0146,9.9911,9.9831,29.34596011]
[1672632923483,53.0146,9.9911,9.9831,114.83570039]
[1672632928105,24.5679,9.991,9.9831,114.83570039]
[1672632928316,30.0,9.9909,9.9831,114.83570039]
[1672632930841,30.0,9.9909,9.9832,109.37908526]
[1672632931050,24.5679,9.991,9.9833,30.0]
[1672632931283,24.5679,9.991,9.9833,210.6761334]
[1672632931472,24.5679,9.991,9.9834,180.6761334]
[1672632931789,24.5679,9.991,9.9836,30.0]
[1672632931995,105.17,9.9923,9.9836,30.0]
[1672632931996,22.779,9.9909,9.9836,30.0]
[1672632932321,22.779,9.9909,9.9838,30.0]
[1672632932646,22.779,9.9909,9.9839,79.37908526]
[1672632933049,22.779,9.9909,9.984,30.0]
[1672632933900,22.779,9.9909,9.9841,85.48974028]
[1672632934954,22.779,9.9909,9.9842,30.0]
[1672632937364,22.779,9.9909,9.9842,85.48974028]
[1672632937574,22.779,9.9909,9.9843,30.0]
[1672632937782,22.779,9.9909,9.9842,85.48974028]
[1672632940714,30.0,9.9908,9.9842,85.48974028]
[1672632941347,75.18,9.9907,9.9842,85.48974028]
[1672632941565,30.0,9.9906,9.9842,85.48974028]
[1672632951045,22.779,9.9909,9.9842,164.86882554]
[1672632951776,22.779,9.9909,9.9843,30.0]
[1672632952097,22.779,9.9909,9.9844,164.86882554]
[1672632952294,22.779,9.9909,9.9845,30.0]
[1672632952501,22.779,9.9909,9.9845,164.86882554]
[1672632952719,22.779,9.9909,9.9846,85.48974028]
[1672632953841,22.779,9.9909,9.9846,101.29704814]